Cogmind - Beta 15 @@@ ROGUE MODE // 2025.08.06 @ 03:33:51 Player: chebyrekser Result: Destroyed by P-80 Master with Gamma Rifle Performance ------------- Evolutions (7) 3500 Regions Visited (23) 4600 Robots Destroyed (390) 1950 Value Destroyed (16060) 16060 Prototype IDs (59) 1180 Alien Tech Used (2) 400 Bonus (6324) 6324 TOTAL SCORE: 34014 Bonus ------- High Alert Combat Kills 353 Follower Combat Kills 1826 Network Hubs Disabled 200 Registered with UFD 300 Met Optimus in HQ 500 Met Zhirov 300 Built Enhanced Grunts 300 A7 Reached Mainframe 300 Met R17 at Cetus 500 Met R17 at Research 2000 Scanned by Researcher 500 Friendly Fire -755 Cogmind --------- Core Integrity 0/1300 Matter 15/300 Energy 100/100 System Corruption 46% Temperature Cool (0) Movement Core (50) Location -3/Testing Parts ------- > --- POWER (2) -------- (None) > --- PROPULSION (4) --- (None) > --- UTILITY (12) ----- (None) > --- WEAPON (3) ------- (None) > --- INVENTORY (5) ---- Experimental Myomer Leg Advanced Particle Charger Advanced Transmission Jammer Graphene Brace Advanced Remote Force Field Peak State ------------ > --- POWER ------------ Antimatter Reactor Light Particle Reactor > --- PROPULSION ------- Heavy Treads Centrium Heavy Treads > --- UTILITY ---------- Experimental Thermal Generator Advanced Heat Sink Advanced Cooling System Advanced Cooling System Advanced Coolant Injector Advanced Coolant Injector Huge Storage Unit Advanced Energy Well Enhanced Optical Array Advanced Sensor Array Advanced Signal Interpreter Improved Targeting Computer > --- WEAPON ----------- Variable Charge Gun Dispersion Rifle Nova Cannon > --- INVENTORY -------- Reinforced Fission Core Light Particle Reactor Compact Particle Reactor Heavy Treads Advanced Medium Treads Centrium Heavy Treads Improved Cryofiber Web Advanced Heat Sink Advanced Heat Sink Advanced Cooling System Energy Filter Advanced Transmission Jammer Hardened Heavy Armor Plating Graphene Brace Hacking Drone Bay Transdimensional Reconstructor HERF Cannon Matter Neutralizer Improved Matter Neutralizer Compact Tesla Bomb Launcher Micro-nuke Launcher Improved Plasma Cutter [Rating: 149] Favorites ----------- Power Quantum Reactor Engine Improved Ion Engine Power Core Fission Core Reactor Quantum Reactor Propulsion Armored Huge Wheel Treads Light Treads Wheel Armored Huge Wheel Utility Advanced Heat Sink Device Advanced Heat Sink Storage Huge Storage Unit Processor Advanced Targeting Computer Hackware Improved Hacking Suite Protection Layered Heavy Armor Plating Weapon Variable Charge Gun Energy Gun Variable Charge Gun Energy Cannon Heavy Plasma Cannon Ballistic Gun Precision Assault Rifle Ballistic Cannon Bore Cannon Launcher Mini Grenade Launcher Special Weapon Plasma Cutter Impact Weapon Maul Slashing Weapon Chainsword Build | -11 -10 -9 -8 -8 -8 -8 -6 -6 -6 -6 -5 -5 -5 -5 -5 -5 -4 -4 -4 -4 -3 -3 -3 ------- Run | Yrd Mat Mat Mat Sto Rec Scr Fac Low Low Zio Pro Fac Ext Cet Arc Hub Fac Upp Upp Zhi Pro Res Tes Slots Evolved 14 | . . 2 2 . . . 4 . . . . 2 . . . . 2 . . . . 2 . Power 1 | . . . . . . . . . . . . 1 . . . . . . . . . . . Propulsion 2 | . . 1 . . . . 1 . . . . . . . . . . . . . . . . Utility 10 | . . 1 2 . . . 2 . . . . 1 . . . . 2 . . . . 2 . Weapon 1 | . . . . . . . 1 . . . . . . . . . . . . . . . . Parts Attached 276 | 8 10 16 22 28 . 2 30 3 1 1 . 15 6 9 3 16 28 9 12 4 11 30 12 Power 35 | 1 2 3 1 2 . . 1 . . . . 4 3 2 1 1 4 1 2 1 . 3 3 Engine 11 | 1 2 2 1 2 . . . . . . . 1 1 . . . . . 1 . . . . Core 10 | . . 1 . . . . 1 . . . . 3 2 . . . . 1 1 . . 1 . Reactor 14 | . . . . . . . . . . . . . . 2 1 1 4 . . 1 . 2 3 Propulsion 47 | 2 1 3 5 9 . . 6 2 . . . 2 . 3 . . 7 2 2 . 1 1 1 Treads 31 | 2 . 2 3 8 . . 4 2 . . . 1 . 3 . . 2 1 . . 1 1 1 Leg . | . . . . . . . . . . . . . . . . . . . . . . . . Wheel 16 | . 1 1 2 1 . . 2 . . . . 1 . . . . 5 1 2 . . . . Hover . | . . . . . . . . . . . . . . . . . . . . . . . . Flight . | . . . . . . . . . . . . . . . . . . . . . . . . Utility 120 | 2 4 4 8 5 . 2 15 . 1 1 . 5 3 2 2 12 14 2 5 1 9 17 6 Device 69 | 1 2 2 3 2 . . 7 . . . . 3 2 1 2 7 7 1 4 . 6 15 4 Storage 8 | 1 2 1 . . . 1 . . . . . . . 1 . 1 . . . 1 . . . Processor 7 | . . . 1 . . . 2 . . . . . . . . 1 . . . . 1 2 . Hackware 3 | . . . . . . . 2 . . 1 . . . . . . . . . . . . . Protection 33 | . . 1 4 3 . 1 4 . 1 . . 2 1 . . 3 7 1 1 . 2 . 2 Artifact . | . . . . . . . . . . . . . . . . . . . . . . . . Weapon 74 | 3 3 6 8 12 . . 8 1 . . . 4 . 2 . 3 3 4 3 2 1 9 2 Energy Gun 36 | 3 . 5 4 6 . . 1 . . . . 1 . 2 . 3 3 3 1 1 . 3 . Energy Cannon 12 | . . . 1 . . . 2 1 . . . 3 . . . . . . . . 1 3 1 Ballistic Gun 11 | . . . 3 4 . . 3 . . . . . . . . . . . 1 . . . . Ballistic Cannon 3 | . 1 . . . . . . . . . . . . . . . . . . 1 . . 1 Launcher 8 | . 1 . . 1 . . 1 . . . . . . . . . . 1 1 . . 3 . Special Weapon 1 | . . . . 1 . . . . . . . . . . . . . . . . . . . Impact Weapon 2 | . 1 1 . . . . . . . . . . . . . . . . . . . . . Slashing Weapon 1 | . . . . . . . 1 . . . . . . . . . . . . . . . . Piercing Weapon . | . . . . . . . . . . . . . . . . . . . . . . . . Special Melee Weapon . | . . . . . . . . . . . . . . . . . . . . . . . . Unidentified Prototypes 28 | . 1 . 5 5 . . 2 . . . . 1 . 1 . 1 1 . . 3 . 6 2 Parts Lost 136 | . 2 6 1 9 . . 6 1 . . . 8 4 . . 16 18 8 5 . 15 2 35 Power 23 | . 1 1 . 2 . . . . . . . 3 1 . . 1 3 3 2 . 1 . 5 Propulsion 25 | . 1 2 . 2 . . 1 1 . . . 1 . . . . 6 2 1 . 2 1 5 Utility 55 | . . 1 1 5 . . 3 . . . . 2 1 . . 11 5 1 2 . 7 . 16 Weapon 33 | . . 2 . . . . 2 . . . . 2 2 . . 4 4 2 . . 5 1 9 Highest Loss Streak 16 | . 1 3 1 2 . . 4 1 . . . 4 2 . . 8 2 4 4 . 12 1 16 To Critical Strikes 1 | . . . . . . . . . . . . . . . . . . . . . . . 1 Average Backups 21 | 3 10 18 23 23 24 24 24 23 24 23 24 21 23 23 21 19 20 18 18 22 20 21 16 Power 1 | . 2 3 2 1 1 1 1 2 2 2 2 . 1 2 2 2 1 . . . . 2 1 Propulsion 2 | 2 2 3 4 3 3 3 2 1 2 2 2 2 2 2 2 2 2 2 1 3 2 2 1 Utility 10 | . 2 4 8 8 11 11 12 12 12 11 11 11 10 9 12 10 10 11 10 10 9 9 7 Weapon 6 | . 3 6 7 8 8 8 7 7 7 7 8 6 8 8 4 3 4 3 5 7 4 5 4 Tool/Special . | . . . . . . . . . . . . . . . . . . . . . . . . Unused Backups 56 | . 7 1 10 1 1 . 5 1 . . . 4 . 6 . 4 4 . . . . 7 5 Power 10 | . 2 . . . . . 1 . . . . 1 . 3 . . 1 . . . . 1 1 Propulsion 10 | . 3 . 3 1 . . . . . . . . . . . . 2 . . . . . 1 Utility 24 | . 2 . 2 . 1 . 4 1 . . . 3 . 2 . 2 1 . . . . 5 1 Weapon 10 | . . . 5 . . . . . . . . . . 1 . 2 . . . . . 1 1 Tool/Special 2 | . . 1 . . . . . . . . . . . . . . . . . . . . 1 Average Slot Usage (%) 88 | . 99 98 88 93 90 90 92 92 93 91 93 92 93 74 87 89 89 80 69 62 79 85 58 Engine 2 | . 13 5 9 9 9 9 1 . . . . . . . . . . . . . . . . Core 2 | . . 5 . . . . 4 6 6 6 6 9 10 3 . . . 1 1 5 4 . . Reactor 3 | . . . . . . . . . . . . . . 6 11 10 9 5 . 2 5 8 6 Treads 11 | . 24 21 9 16 9 9 12 12 13 13 13 11 11 11 11 11 6 5 8 5 5 8 6 Wheel 6 | . 3 10 9 4 9 9 6 6 6 6 6 5 5 5 5 5 8 7 5 9 9 . . Device 17 | . 14 20 18 10 9 9 14 12 12 13 12 17 15 11 10 21 28 23 21 15 14 30 21 Storage 6 | . 14 11 9 9 9 9 6 6 6 6 6 5 5 5 5 5 5 5 5 7 10 8 4 Processor 8 | . . . 1 9 9 9 12 13 13 13 13 11 11 11 11 6 5 5 5 5 5 9 4 Hackware 2 | . . . . . . . 5 13 13 7 6 5 5 5 5 2 . . . . . . . Protection 6 | . . 1 14 15 18 18 4 . . 4 6 4 5 4 5 5 7 9 9 10 9 3 2 Energy Gun 7 | . 20 19 3 7 9 9 7 6 6 5 5 4 4 2 . 2 13 14 8 . 12 9 5 Energy Cannon 2 | . . . 2 1 . . . . . . . . 4 . 10 10 1 . . . . 2 3 Ballistic Gun 4 | . . . 9 6 9 9 8 9 12 11 7 6 6 . 4 . . . . . . . . Peak Build Rating 149 | 7 11 18 35 39 36 36 68 73 73 76 76 90 94 100 101 105 130 115 117 119 120 149 148 Average Rating 79 | 5 8 15 31 34 35 35 60 69 72 73 74 84 89 86 100 96 113 108 103 95 112 137 96 On Entrance 69 | . 7 11 17 35 35 36 36 67 70 73 73 71 90 85 86 99 100 113 110 98 119 108 140 Naked Turns 9 | . . . . . . . . . . . . . . . . . . . . . . . 9 Heaviest Build 186 | 14 32 101 107 105 101 101 116 110 108 118 118 134 145 174 186 183 182 154 169 181 181 163 166 Greatest Support 150 | 40 40 40 28 60 28 28 28 28 28 28 28 56 58 28 28 28 135 110 110 26 150 150 150 Greatest Overweight (x) 16 | . 2 8 8 5 5 3 4 3 3 4 4 4 5 6 6 6 16 9 9 6 6 1 4 Average Overweight (x) 3 | . . 4 3 2 3 3 3 3 3 3 3 3 3 5 5 5 5 4 4 5 5 . 1 Largest Inventory Capacity 25 | 8 15 25 25 25 25 25 25 25 25 25 25 25 25 25 25 25 25 25 25 25 25 25 25 Average Capacity 24 | 7 11 20 25 25 25 25 25 25 25 25 25 25 25 25 25 25 25 25 25 25 25 25 22 Most Carried 25 | 6 15 25 25 25 25 25 25 25 25 25 25 25 25 25 25 25 25 25 25 25 25 25 25 Average Carried 23 | 4 10 18 24 24 24 24 24 24 25 24 25 23 24 24 24 22 23 22 20 24 23 23 17 Final Capacity 25 | 8 15 25 25 25 25 25 25 25 25 25 25 25 25 25 25 25 25 25 25 25 25 25 5 Final Carried 25 | 5 15 25 25 23 25 25 25 25 25 25 25 25 25 25 25 22 24 21 25 23 16 25 5 Class Distribution -------------------- 23% | Scavenger-Mutant 21% | Scavenger-Tank 12% | Mutant 10% | Commander-Tank 5% | Hacker-Skirmisher 5% | Skirmisher 4% | Tank 4% | Scavenger-Skirmisher Dominant Class ---------------- Mutant | -10/Materials Scavenger-Mutant | -9/Materials Scavenger-Mutant | -8/Materials Scavenger-Mutant | -8/Storage Scavenger-Mutant | -8/Recycling Scavenger-Mutant | -8/Scraptown Scavenger-Mutant | -6/Factory Hacker-Skirmisher | -6/Lower Caves Hacker-Skirmisher | -6/Lower Caves Skirmisher | -6/Zion Skirmisher | -5/Proximity Caves Mutant | -5/Factory Tank | -5/Extension Commander-Mutant | -5/Cetus Commander-Tank | -5/Archives Scavenger-Mutant | -5/Hub_04(d) Scavenger-Tank | -4/Factory Scavenger-Tank | -4/Upper Caves Scavenger-Mutant | -4/Upper Caves Scavenger-Mutant | -4/Zhirov Scavenger-Tank | -3/Proximity Caves Scavenger-Tank | -3/Research Scavenger-Tank | -3/Testing Resources | -11 -10 -9 -8 -8 -8 -8 -6 -6 -6 -6 -5 -5 -5 -5 -5 -5 -4 -4 -4 -4 -3 -3 -3 ----------- Run | Yrd Mat Mat Mat Sto Rec Scr Fac Low Low Zio Pro Fac Ext Cet Arc Hub Fac Upp Upp Zhi Pro Res Tes Matter Collected 11195 | 280 306 418 546 1022 38 . 1564 277 128 50 109 1218 886 280 293 476 1145 135 606 . 646 456 316 Remotely 47 | . . . . . . . . . . . . . . . . . . . . . 47 . . Salvage Created 18873 | 110 633 1720 796 1603 342 . 1981 30 69 . 57 1517 1087 65 324 1907 3325 768 645 . 586 459 849 Parts 796 | 7 44 79 44 78 14 . 109 4 5 . 4 72 20 2 23 76 118 14 18 . 15 19 31 Haulers Intercepted 17 | . 2 4 5 5 . . 1 . . . . . . . . . . . . . . . . Recyclers Shooed 27 | 1 . 4 . 3 . . 9 . . . . 2 . . . 1 6 . . . . . 1 Parts Field Recycled . | . . . . . . . . . . . . . . . . . . . . . . . . Retrieved Matter . | . . . . . . . . . . . . . . . . . . . . . . . . Parts Self-Destructed 58 | . . . . . . . . 4 5 . 4 . . . . . . 12 18 . 15 . . Prevented 5 | . . . . . . . . 1 . . . . . . . . . . 4 . . . . Kills | -11 -10 -9 -8 -8 -8 -8 -6 -6 -6 -6 -5 -5 -5 -5 -5 -5 -4 -4 -4 -4 -3 -3 -3 ------- Run | Yrd Mat Mat Mat Sto Rec Scr Fac Low Low Zio Pro Fac Ext Cet Arc Hub Fac Upp Upp Zhi Pro Res Tes Combat Hostiles Destroyed 269 | . 19 27 12 26 1 . 23 4 4 . 1 18 11 1 2 31 34 5 17 . 10 6 17 Guns 161 | . 9 22 10 24 1 . 22 1 1 . 1 13 6 . . 4 28 5 5 . 7 1 1 Cannons 36 | . 7 . 2 . . . . . . . . . 1 . . 21 . . . . . 2 3 AOE 50 | . 3 3 . 2 . . 1 3 3 . . 5 . . . 4 1 . 12 . 2 2 9 Classes Destroyed 25 | 2 5 5 . 1 . . 2 . . . . . 1 . . 3 . 1 . . . 2 3 Worker 20 | . . . . 2 . . 5 . . . . 2 . . . 5 5 . . . . . 1 Builder 15 | . 1 . . . 1 . 2 . . . . 2 . . . 2 3 . . . . 1 3 Tunneler 3 | 1 . 1 . . . . . . . . . 1 . . . . . . . . . . . Hauler 17 | . 2 4 5 5 . . 1 . . . . . . . . . . . . . . . . Recycler 34 | 1 . 4 1 2 3 . 5 . . . . 5 2 . . 1 7 . . . . 1 2 Mechanic 2 | . . 1 . . . . . . . . . . . . . . 1 . . . . . . Operator 14 | . 1 2 1 1 . . 1 . . . . 1 . . 5 . 1 . . . . . 1 Watcher 13 | . . 4 2 2 . . 1 . . . . 1 1 . . 2 . . . . . . . Swarmer 51 | . 6 6 6 4 . . 3 4 4 . . 5 . . . 5 . . 2 . 4 2 . Saboteur 2 | . . . . . . . . . . . . . . . . 1 . . 1 . . . . Grunt 84 | . 13 12 4 10 . . 6 . . . . 1 . . . 13 10 2 6 . 3 . 4 Brawler 7 | . . 1 . . . . . . . . . . . . . . 1 1 1 . . . 3 Duelist 11 | . . 1 . 3 . . . . . . . . . . . 1 . . 4 . 1 . 1 Protector 1 | . . . . . . . . . . . . . . . . . . . . . . . 1 Researcher 2 | . . . . . . . . . . . . . . . . . . . . . . . 2 Sentry 38 | . . 7 2 9 1 . 2 . . . . . 7 . 2 2 4 . 1 . 1 . . Demolisher 1 | . . . . . . . . . . . . . . . . . . . . . . 1 . Specialist 1 | . . . . . . . . . . . . . . . . 1 . . . . . . . Hunter 17 | . . . . . . . 4 . . . . . 2 . . 1 3 . 1 . . 2 4 Programmer 49 | . . . . . . . 8 . . . 1 12 . . . 6 16 2 1 . . . 3 Heavy 1 | . . . . . . . . . . . . . . . . 1 . . . . . . . Behemoth 3 | . . . . . . . . . . . . . 2 . . . . . . . 1 . . Cetus Guard 1 | . . . . . . . . . . . . . . 1 . . . . . . . . . Executioner 1 | . . . . . . . . . . . . . . . . . . . . . . 1 . Alpha 7 1 | . . . . . . . . . . . . . . . . . . . . . . . 1 Packrat 2 | . . . . . . . . . . . . . . . . . . 1 1 . . . . Samaritan 2 | . . . . . . . . . . . . . . . . . . 2 . . . . . Guerrilla 1 | . . . . . . . . . . . . . . . . 1 . . . . . . . Best Kill Streak 13 | 1 6 4 7 4 2 . 6 4 4 . 1 8 2 1 3 10 9 2 13 . 4 4 10 Combat Bots Only 13 | . 6 4 6 3 1 . 5 4 4 . 1 5 2 1 1 8 5 2 13 . 4 3 7 Max Kills in Single Turn 4 | 1 2 2 1 1 2 . 1 2 3 . 1 2 1 1 1 4 2 1 4 . 2 2 4 Gunslinging 1 | . . . . . . . . . . . . . . . . . 1 . . . . . . Exploded 4 | . 2 2 . 1 . . 1 2 3 . . 2 . . . 3 1 . 4 . 2 2 2 Melee . | . . . . . . . . . . . . . . . . . . . . . . . . Uniques/NPCs Destroyed . | . . . . . . . . . . . . . . . . . . . . . . . . Combat | -11 -10 -9 -8 -8 -8 -8 -6 -6 -6 -6 -5 -5 -5 -5 -5 -5 -4 -4 -4 -4 -3 -3 -3 -------- Run | Yrd Mat Mat Mat Sto Rec Scr Fac Low Low Zio Pro Fac Ext Cet Arc Hub Fac Upp Upp Zhi Pro Res Tes Hostile Shots Fired 2177 | . 82 100 56 164 8 . 169 8 11 . 8 137 76 20 2 275 292 66 98 . 118 55 432 Missed 631 | . 25 34 13 39 3 . 53 2 6 . 2 32 23 7 1 83 70 32 34 . 26 16 130 Hits 1546 | . 57 66 43 125 5 . 116 6 5 . 6 105 53 13 1 192 222 34 64 . 92 39 302 Melee 44 | . . 6 . 12 . . . . . . . . . . . 1 . . 5 . . . 20 Projectile 1502 | . 57 60 43 113 5 . 116 6 5 . 6 105 53 13 1 191 222 34 59 . 92 39 282 AOE 5 | . . . . . . . . . . . . . . . . . 1 . . . . 4 . Critical Strikes 67 | . . 2 . 9 1 . 2 . . . . 8 1 2 . 4 12 5 4 . 5 . 12 Actively Blocked 20 | . . . . . . . . . . . . . . . . . 6 5 4 . 4 . 1 Part Disruptions 1 | . . . . . . . . . . . . . . . . . . 1 . . . . . Damage Taken 28282 | . 631 892 504 1951 73 . 1747 137 104 . 121 2099 947 129 24 2965 3590 968 1679 . 2825 833 6063 Core 3142 | . 145 105 15 299 14 . 164 17 11 . 42 242 115 . . 288 169 28 115 . 93 68 1212 Absorbed by Shields 2412 | . . . . . . . . . . . . 30 318 110 6 560 1006 . . . . 62 320 Reduced by Siege Mode 287 | . . . . . . . . . . . . . . . . . 48 . 5 . 85 8 141 Redirected to Shielding 190 | . . . . . . . . . . . . 52 48 . . . . . . . . . 90 Ignored by Resistances 309 | . . . . . . . . . . . . . . 135 . 174 . . . . . . . Regen/Repaired (Parts) 710 | . . 161 . 31 . . 132 . . . . . . . . . 386 . . . . . . Core Remaining (%) 60 | 100 42 73 . . . 40 . . . . 72 . . . . 35 . . . . 64 . . Volleys Fired 1072 | 4 60 107 47 113 7 . 104 3 8 . 3 53 56 7 29 85 152 44 30 . 50 31 79 Largest 3 | 2 2 2 2 2 2 . 3 2 3 . 3 3 3 2 3 3 3 3 3 . 3 3 3 Hottest 450 | 80 80 121 96 129 86 . 151 90 120 . 118 180 260 130 208 261 450 251 274 . 300 276 293 Shots Fired 2388 | 8 114 210 92 209 14 . 250 7 16 . 9 146 156 10 47 203 412 132 55 . 130 60 108 Gun 1895 | 8 82 205 79 184 14 . 247 3 15 . 9 140 117 6 27 45 377 132 38 . 108 32 27 Cannon 426 | . 30 2 13 20 . . . . . . . 2 39 . 20 155 33 . . . 20 26 66 Launcher 67 | . 2 3 . 5 . . 3 4 1 . . 4 . 4 . 3 2 . 17 . 2 2 15 Special . | . . . . . . . . . . . . . . . . . . . . . . . . Kinetic 539 | . 30 2 59 99 7 . 123 2 8 . 6 91 68 . 27 . . . . . 17 . . Thermal 1756 | 4 82 205 33 105 7 . 124 1 7 . 3 51 88 . 20 200 410 132 38 . 108 55 83 Explosive 63 | . 2 3 . 5 . . 3 4 1 . . 4 . 4 . 3 2 . 17 . 2 2 11 Electromagnetic 30 | 4 . . . . . . . . . . . . . 6 . . . . . . 3 3 14 Robot Hit Streak 32 | 2 15 9 13 27 5 . 21 2 1 . 6 22 32 6 9 21 23 18 6 . 26 6 16 Robot Miss Streak 8 | 1 3 8 2 3 1 . 3 1 3 . 1 1 2 . 3 4 6 3 2 . 6 3 4 Penetration Max . | . . . . . . . . . . . . . . . . . . . . . . . . Secondary Targets 20 | . . 4 2 2 . . 2 . . . . 1 . . . . 3 2 2 . 2 . . Max Gunslinging Chain 1 | . . 1 1 1 . . 1 . . . . 1 . . . . 1 1 1 . 1 . . Shots Hit Robots 1584 | 5 77 127 63 161 8 . 170 3 5 . 6 121 123 6 31 130 261 81 28 . 85 31 62 Core Hits 771 | 3 41 65 28 57 6 . 83 5 5 . 2 49 41 14 17 66 114 28 46 . 27 21 53 Critical Kills 10 | . . . 2 . . . 1 . . . . . . . 2 2 1 . . . . . 2 Critical Parts Destroyed 11 | . . . . 2 . . 2 . . . . . . . . . . 1 2 . 3 1 . Critical Strikes 79 | . 1 13 2 12 1 . 7 . . . . 2 8 . 2 4 1 1 3 . 17 2 3 Burn 50 | . . 13 . 10 1 . 4 . . . . 2 8 . . 2 . . 1 . 7 1 1 Meltdown 7 | . . . . . . . . . . . . . . . 2 2 1 . . . . . 2 Destroy 20 | . . . 2 1 . . 3 . . . . . . . . . . 1 2 . 10 1 . Blast 1 | . 1 . . . . . . . . . . . . . . . . . . . . . . Smash 1 | . . . . 1 . . . . . . . . . . . . . . . . . . . Melee Attacks 108 | . 12 12 2 15 . . 30 . . . 1 36 . . . . . . . . . . . Impact 60 | . 12 12 2 15 . . 19 . . . . . . . . . . . . . . . . Slashing 48 | . . . . . . . 11 . . . 1 36 . . . . . . . . . . . Piercing . | . . . . . . . . . . . . . . . . . . . . . . . . Sneak Attacks 14 | . . . . 4 . . 2 . . . . 8 . . . . . . . . . . . Combat Hostiles . | . . . . . . . . . . . . . . . . . . . . . . . . Follow-up Attacks . | . . . . . . . . . . . . . . . . . . . . . . . . Damage Inflicted 49499 | 62 1239 2104 1165 3790 160 . 4176 392 289 . 153 3726 2857 398 766 5494 7467 2052 3675 . 2340 1422 5772 Guns 28259 | 62 657 1806 981 2611 160 . 3652 27 104 . 153 2729 2038 131 348 921 6575 2052 722 . 1572 455 503 Cannons 8694 | . 371 16 184 229 . . . . . . . . 819 . 418 3904 509 . . . 363 432 1449 Explosions 11489 | . 211 277 . 632 . . 401 365 185 . . 414 . 267 . 657 367 . 2953 . 405 535 3820 Melee 1005 | . . . . 309 . . 118 . . . . 578 . . . . . . . . . . . Ramming 52 | . . 5 . 9 . . 5 . . . . 5 . . . 12 16 . . . . . . Kinetic 7380 | . 371 16 784 1346 72 . 1325 . 30 . 89 1651 1033 . 348 . . . . . 315 . . Thermal 29188 | 12 657 1806 381 1494 88 . 2327 27 74 . 64 1078 1824 . 418 4825 7084 2052 722 . 1572 887 1796 Explosive 11151 | . 211 277 . 632 . . 401 365 185 . . 386 . 267 . 657 367 . 2953 . 405 535 3510 Electromagnetic 723 | 50 . . . . . . . . . . . 28 . 131 . . . . . . 48 . 466 Impact 427 | . . . . 309 . . 118 . . . . . . . . . . . . . . . . Slashing 578 | . . . . . . . . . . . . 578 . . . . . . . . . . . Piercing . | . . . . . . . . . . . . . . . . . . . . . . . . Highest Corruption 46 | . 1 3 . . . . 3 3 3 3 1 18 23 13 13 5 20 23 26 23 30 . 46 Average Corruption 12 | . 1 2 . . . . 2 3 3 3 1 10 21 13 9 4 11 20 25 22 22 . 29 Corruption Purged 38 | . . . . . . . . . . . . 5 10 . 13 . . 6 3 1 . . . Corruption Blocked . | . . . . . . . . . . . . . . . . . . . . . . . . Effects 762 | . 1 27 . . . . 44 19 22 1 4 70 91 35 11 14 109 85 87 14 82 . 46 Message Errors 176 | . . 5 . . . . 9 1 3 1 1 15 18 10 2 2 25 27 24 3 23 . 7 Matter Fused 194 | . 1 11 . . . . 13 5 3 . 2 14 34 9 4 5 31 16 18 1 19 . 8 Heat Flow Errors 84 | . . 2 . . . . 7 1 2 . 1 11 6 6 1 1 12 8 9 4 7 . 6 Energy Discharges 84 | . . 2 . . . . 3 4 6 . . 9 11 4 1 2 10 8 10 1 10 . 3 Parts Rejected 4 | . . . . . . . . . . . . . . . 1 1 . 1 1 . . . . Parts Fused 9 | . . . . . . . . 2 . . . . 1 . . . 2 . 1 . 2 . 1 Data Loss (minor) 84 | . . 4 . . . . 4 3 5 . . 11 5 4 1 2 12 10 10 4 7 . 2 Data Loss (major) 35 | . . 2 . . . . 5 1 1 . . 4 3 1 . . 3 4 4 1 4 . 2 Misfires 27 | . . 1 . . . . 2 1 . . . 2 4 . . 1 3 5 2 . 4 . 2 Alerts 13 | . . . . . . . 1 1 1 . . . 2 1 . . 2 1 2 . 2 . . Misdirections 8 | . . . . . . . . . . . . . . . . . 1 . 2 . 1 . 4 Weapon Failures 44 | . . . . . . . . . 1 . . 4 7 . 1 . 8 5 4 . 3 . 11 Overload Shots 28 | . . . . . . . . . . . . . . . . 1 18 . 4 . 5 . . Effects 2 | . . . . . . . . . . . . . . . . . 2 . . . . . . Energy Bleed 2 | . . . . . . . . . . . . . . . . . 2 . . . . . . Overflow Damage 808 | . . 2 . 230 . . . 2 . . . 144 . . 32 146 23 . 76 . 3 13 137 Projectiles 195 | . . . . . . . . . . . . . . . 32 121 23 . . . . . 19 Explosions 250 | . . 2 . 6 . . . 2 . . . 5 . . . 25 . . 76 . 3 13 118 Melee 363 | . . . . 224 . . . . . . . 139 . . . . . . . . . . . Knockbacks 11 | . 7 . . 2 . . 2 . . . . . . . . . . . . . . . . Impact 4 | . . . . 2 . . 2 . . . . . . . . . . . . . . . . Kinetic 7 | . 7 . . . . . . . . . . . . . . . . . . . . . . Secondary . | . . . . . . . . . . . . . . . . . . . . . . . . Self-Inflicted Damage 764 | . . . . 4 . . 2 49 34 . . 29 . 30 . 45 . . 272 . 46 45 208 Shots 18 | . . . . 1 . . . 1 1 . . 1 . 1 . 1 . . 5 . 2 1 4 Rammed 10 | . . 2 . 1 . . 1 . . . . 1 . . . 2 3 . . . . . . Targets Rammed 12 | . . 3 . 1 . . 1 . . . . 1 . . . 3 3 . . . . . . Kicked . | . . . . . . . . . . . . . . . . . . . . . . . . Crushed 2 | . . 1 . . . . . . . . . . . . . 1 . . . . . . . Highest Temperature 431 | 54 269 336 45 222 77 . 208 109 251 . 72 230 254 262 378 340 216 39 253 276 431 54 183 Average Temperature 69 | 25 72 64 16 45 33 . 29 61 62 . 43 52 74 75 146 89 60 26 77 117 107 13 49 Received Heat Transfer 3686 | . 312 264 144 684 36 . 249 . . . . 18 175 4 7 944 260 87 135 . 261 . 106 Effects 11 | . 1 2 . 3 . . . . . . . . . . 2 1 . . . . 2 . . Shutdowns 1 | . . . . . . . . . . . . . . . . . . . . . 1 . . Energy Bleed 4 | . . 2 . . . . . . . . . . . . 2 . . . . . . . . Interference 5 | . 1 . . 3 . . . . . . . . . . . 1 . . . . . . . Matter Decay 1 | . . . . . . . . . . . . . . . . . . . . . 1 . . Siege Activations 14 | . . . . . . . . . . . . . . . . . 8 . 1 . 1 1 3 Total Turns 344 | . . . . . . . . . . . . . . . . . 176 . 9 . 93 9 57 Longest Duration 93 | . . . . . . . . . . . . . . . . . 59 . 9 . 93 9 31 Martial Activations . | . . . . . . . . . . . . . . . . . . . . . . . . Shielding Activations . | . . . . . . . . . . . . . . . . . . . . . . . . Robots Disrupted . | . . . . . . . . . . . . . . . . . . . . . . . . Combat Hostiles . | . . . . . . . . . . . . . . . . . . . . . . . . Robots Corrupted 5 | . . . . 3 . . . . . . . . . 1 . . . . . . . . 1 Combat Hostiles 2 | . . . . . . . . . . . . . . 1 . . . . . . . . 1 Parts Fried 5 | . . . . 3 . . . . . . . . . . . . . . . . . . 2 Impact Corruptions 10 | . . . . 10 . . . . . . . . . . . . . . . . . . . Robots Melted 24 | . . 3 . . . . . . . . . . 4 . 2 3 7 . . . 1 1 3 Combat Hostiles 20 | . . 2 . . . . . . . . . . 4 . 2 2 5 . . . 1 1 3 Parts Melted 146 | . 1 14 . 10 . . 14 . 1 . . 6 20 . 3 22 33 10 1 . 4 3 4 Heat Transferred 50790 | 25 1500 5526 814 3774 259 . 3774 37 111 . 74 2083 4600 . 650 6769 10383 3182 1075 . 3219 1221 1714 Parts Sabotaged . | . . . . . . . . . . . . . . . . . . . . . . . . Parts Stolen . | . . . . . . . . . . . . . . . . . . . . . . . . Parts Stripped . | . . . . . . . . . . . . . . . . . . . . . . . . Power Chain Reactions . | . . . . . . . . . . . . . . . . . . . . . . . . Alert | -11 -10 -9 -8 -8 -8 -8 -6 -6 -6 -6 -5 -5 -5 -5 -5 -5 -4 -4 -4 -4 -3 -3 -3 ------- Run | Yrd Mat Mat Mat Sto Rec Scr Fac Low Low Zio Pro Fac Ext Cet Arc Hub Fac Upp Upp Zhi Pro Res Tes Maximum Alert Level 3 | . 1 1 1 1 . . 1 . . . . . 1 1 1 2 3 . . . . . 1 Low Security (%) 76 | 100 85 90 98 69 100 . 70 . . . . 100 88 57 97 11 38 . . . . 100 90 Level 1 19 | . 14 9 1 30 . . 29 . . . . . 11 42 2 37 51 . . . . . 9 Level 2 4 | . . . . . . . . . . . . . . . . 51 9 . . . . . . Level 3 . | . . . . . . . . . . . . . . . . . . . . . . . . Level 4 . | . . . . . . . . . . . . . . . . . . . . . . . . Level 5 . | . . . . . . . . . . . . . . . . . . . . . . . . High Security . | . . . . . . . . . . . . . . . . . . . . . . . . Max Security . | . . . . . . . . . . . . . . . . . . . . . . . . Peak Influence 715 | 5 225 220 200 303 76 . 317 . . . . 190 337 286 242 649 715 . . . . 98 246 Initial 307 | . . 89 18 77 56 . . . . . . . 67 188 51 . 307 . . . . 9 . Average 122 | . 105 81 89 162 5 . 148 . . . . 78 57 188 20 393 243 . . . . 11 95 Influence Increases 11354 | 10 619 877 445 964 50 . 892 90 90 . 30 641 885 392 265 1728 1375 175 470 . 266 276 814 Destroy 0b10 Robot/C 6140 | . 380 540 240 520 20 . 460 80 80 . 20 360 440 160 80 840 720 100 400 . 220 120 360 Destroy 0b10 Robot/NC 680 | 10 20 85 45 60 20 . 75 . . . . 60 40 10 25 55 90 25 . . 10 10 40 Destroy Leader 1264 | . 74 166 64 164 . . 144 10 10 . 10 82 44 . . 176 150 20 40 . 30 30 50 Allied During Kill 737 | . . . . . . . . . . . . . 183 133 105 263 17 . 30 . 6 . . Successful Hack 160 | . 5 23 18 16 10 . 57 . . . . . 5 . . . 26 . . . . . . Disable Machine 1050 | . 15 15 30 120 . . 105 . . . . 45 75 15 45 195 135 . . . . 60 195 Destroy Structure 903 | . 20 18 3 39 . . 51 . . . . 94 38 74 10 154 192 . . . . 56 154 Partial Spotted 30 | . . . . 15 . . . . . . . . . . . . . . . . . . 15 Lose Combat Pursuer 390 | . 105 30 45 30 . . . . . . . . 60 . . 45 45 30 . . . . . Influence Decreases 11152 | 10 408 1044 305 1003 195 . 582 400 90 . 30 502 687 601 393 1100 1329 849 470 . 251 291 612 Entered New Map 1335 | . . 122 26 107 89 . . 115 . . . . 72 149 77 . 321 251 . . . 6 . Time Decay 7405 | 10 388 583 269 676 106 . 522 275 90 . 30 432 373 392 316 540 728 518 430 . 180 275 272 Lost Part 1165 | . 20 60 10 70 . . 50 10 . . . 70 34 . . 160 180 80 40 . 31 10 340 Lost Ally 518 | . . . . . . . 10 . . . . . 208 60 . 100 100 . . . 40 . . Purge Threat 729 | . . 279 . 150 . . . . . . . . . . . 300 . . . . . . . Squads Dispatched 87 | . 6 5 1 3 . . 19 . . . . 8 2 . . 13 17 . 1 . . 6 6 Investigation 24 | . 3 4 . . . . 6 . . . . 3 . . . . 3 . . . . 5 . Extermination 27 | . . . . . . . 8 . . . . 4 . . . 3 10 . . . . . 2 Reinforcement 25 | . 3 1 1 1 . . 2 . . . . 1 2 . . 8 3 . . . . 1 2 Assault 6 | . . . . . . . . . . . . . . . . 2 1 . 1 . . . 2 Garrison 5 | . . . . 2 . . 3 . . . . . . . . . . . . . . . . Intercept . | . . . . . . . . . . . . . . . . . . . . . . . . Searches Triggered . | . . . . . . . . . . . . . . . . . . . . . . . . Construction Impeded 5 | . . . . . . . . . . . . . 1 . . 2 2 . . . . . . Haulers Reinforced 3 | . . . . . . . 1 . . . . . . . . 1 1 . . . . . . Active Scanning Responses . | . . . . . . . . . . . . . . . . . . . . . . . . Cargo Convoy Interrupts . | . . . . . . . . . . . . . . . . . . . . . . . . Stealth | -11 -10 -9 -8 -8 -8 -8 -6 -6 -6 -6 -5 -5 -5 -5 -5 -5 -4 -4 -4 -4 -3 -3 -3 --------- Run | Yrd Mat Mat Mat Sto Rec Scr Fac Low Low Zio Pro Fac Ext Cet Arc Hub Fac Upp Upp Zhi Pro Res Tes Distress Signals 34 | . 3 4 . . . . . . . . . 2 2 2 1 5 4 . . . . 11 . Communications Jammed . | . . . . . . . . . . . . . . . . . . . . . . . . Distress Signals . | . . . . . . . . . . . . . . . . . . . . . . . . Times Spotted 447 | . 29 41 23 32 1 . 33 3 1 . 1 24 27 9 31 54 53 7 20 . 11 16 31 Peak Tracking Total 11 | . 5 5 3 4 1 . 4 3 1 . 1 5 5 5 1 9 5 3 9 . 5 4 11 Tactical Retreats 19 | . 4 2 2 2 . . . . . . . . 3 . . 2 2 2 . . . . . Traps | -11 -10 -9 -8 -8 -8 -8 -6 -6 -6 -6 -5 -5 -5 -5 -5 -5 -4 -4 -4 -4 -3 -3 -3 ------- Run | Yrd Mat Mat Mat Sto Rec Scr Fac Low Low Zio Pro Fac Ext Cet Arc Hub Fac Upp Upp Zhi Pro Res Tes Traps Triggered 25 | . 3 4 . 3 . . 4 . . . . . 8 . . 1 1 1 . . . . . Indirectly . | . . . . . . . . . . . . . . . . . . . . . . . . Trap Hack Attempts . | . . . . . . . . . . . . . . . . . . . . . . . . Triggered . | . . . . . . . . . . . . . . . . . . . . . . . . Disarmed . | . . . . . . . . . . . . . . . . . . . . . . . . Reprogrammed . | . . . . . . . . . . . . . . . . . . . . . . . . Reused . | . . . . . . . . . . . . . . . . . . . . . . . . Traps Extracted . | . . . . . . . . . . . . . . . . . . . . . . . . Installed . | . . . . . . . . . . . . . . . . . . . . . . . . Triggered . | . . . . . . . . . . . . . . . . . . . . . . . . Machines | -11 -10 -9 -8 -8 -8 -8 -6 -6 -6 -6 -5 -5 -5 -5 -5 -5 -4 -4 -4 -4 -3 -3 -3 ---------- Run | Yrd Mat Mat Mat Sto Rec Scr Fac Low Low Zio Pro Fac Ext Cet Arc Hub Fac Upp Upp Zhi Pro Res Tes Machines Disabled 72 | . 1 1 2 8 . . 7 . . . . 3 5 1 3 13 9 . 2 . . 4 13 Max in Single Turn 3 | . 1 1 1 1 . . 1 . . . . 2 1 1 1 2 1 . 2 . . 1 3 Garrison Access 4 | . . . . 1 . . 1 . . . . . . . . 1 . . . . . . 1 Network Hub 1 | . . . . . . . . . . . . . . . . 1 . . . . . . . Machines Repaired . | . . . . . . . . . . . . . . . . . . . . . . . . Machines Dismantled 11 | . . . . 4 . . . . . . . . 5 1 . 1 . . . . . . . Machines Sabotaged . | . . . . . . . . . . . . . . . . . . . . . . . . Overloaded Fab Kills . | . . . . . . . . . . . . . . . . . . . . . . . . Hacking | -11 -10 -9 -8 -8 -8 -8 -6 -6 -6 -6 -5 -5 -5 -5 -5 -5 -4 -4 -4 -4 -3 -3 -3 --------- Run | Yrd Mat Mat Mat Sto Rec Scr Fac Low Low Zio Pro Fac Ext Cet Arc Hub Fac Upp Upp Zhi Pro Res Tes Machines Accessed 86 | . 4 9 4 8 5 2 20 1 1 . . 6 5 2 1 1 5 3 . 4 1 4 . Terminals 48 | . 3 8 4 6 5 . 11 . . . . 2 5 2 . . . 1 . . 1 . . Fabricators . | . . . . . . . . . . . . . . . . . . . . . . . . Repair Stations 6 | . . 1 . 1 . . 2 . . . . . . . . . 2 . . . . . . Recycling Units 13 | . 1 . . . . . 3 . . . . 3 . . . . 3 . . . . 3 . Scanalyzers 4 | . . . . . . . 3 . . . . 1 . . . . . . . . . . . Garrison Access 4 | . . . . 1 . . 1 . . . . . . . . 1 . . . . . 1 . Total Hacks 212 | . 11 26 11 23 12 2 43 1 1 . . 16 8 5 7 2 14 3 . 17 2 8 . Successful 114 | . 4 11 4 14 5 2 16 1 1 . . 15 2 1 7 1 5 3 . 17 2 3 . Failed 97 | . 6 15 7 9 7 . 27 . . . . 1 6 4 . 1 9 . . . . 5 . Catastrophic 19 | . 1 7 . . . . 7 . . . . 1 . 2 . . 1 . . . . . . Database Lockouts 1 | . 1 . . . . . . . . . . . . . . . . . . . . . . Manual 84 | . 8 18 9 12 6 . 16 . . . . 3 . 1 . . 4 . . . . 7 . Terminals 110 | . 8 22 11 18 12 . 21 . . . . 2 8 5 . . . 1 . . 2 . . Fabricators . | . . . . . . . . . . . . . . . . . . . . . . . . Repair Stations 21 | . . 4 . 3 . . 4 . . . . . . . . . 10 . . . . . . Recycling Units 21 | . 3 . . . . . 4 . . . . 3 . . . . 4 . . . . 7 . Scanalyzers 23 | . . . . . . . 12 . . . . 11 . . . . . . . . . . . Garrison Access 7 | . . . . 2 . . 2 . . . . . . . . 2 . . . . . 1 . Terminal Hacks 60 | . 2 5 2 7 5 2 2 1 1 . . 1 2 1 7 . . 3 . 17 2 . . Record 18 | . . . . . . 1 . . . . . . . 1 7 . . 2 . 5 2 . . Part Schematic 6 | . 1 . . . . . 1 . . . . . . . . . . . . 4 . . . Robot Analysis 8 | . 1 . . 1 2 . . . . . . . . . . . . . . 4 . . . Prototype ID Bank 10 | . . 1 . 2 2 . 1 . . . . . . . . . . . . 4 . . . Open Door 6 | . . . . . . . . 1 1 . . 1 2 . . . . 1 . . . . . Branch Access Points 2 | . . 1 1 . . . . . . . . . . . . . . . . . . . . Unreport Threat 3 | . . 2 . 1 . . . . . . . . . . . . . . . . . . . Hauler Manifests 2 | . . 1 . 1 . . . . . . . . . . . . . . . . . . . Registered Components 1 | . . . 1 . . . . . . . . . . . . . . . . . . . . Zone Layout 3 | . . . . 2 1 . . . . . . . . . . . . . . . . . . Proto ID Catalog 1 | . . . . . . 1 . . . . . . . . . . . . . . . . . Fabricator Hacks . | . . . . . . . . . . . . . . . . . . . . . . . . Repair Station Hacks 11 | . . 4 . 3 . . 2 . . . . . . . . . 2 . . . . . . Scan Component 6 | . . 2 . 2 . . 1 . . . . . . . . . 1 . . . . . . Repair 5 | . . 2 . 1 . . 1 . . . . . . . . . 1 . . . . . . Recycling Unit Hacks 1 | . 1 . . . . . . . . . . . . . . . . . . . . . . Retrieve Components 1 | . 1 . . . . . . . . . . . . . . . . . . . . . . Scanalyzer 19 | . . . . . . . 8 . . . . 11 . . . . . . . . . . . Insert Component 10 | . . . . . . . 5 . . . . 5 . . . . . . . . . . . Analyze 9 | . . . . . . . 3 . . . . 6 . . . . . . . . . . . Garrison Access Hacks 3 | . . . . 1 . . 1 . . . . . . . . 1 . . . . . . . Seal Access 3 | . . . . 1 . . 1 . . . . . . . . 1 . . . . . . . Unauthorized Hacks 20 | . 1 2 2 3 . . 3 . . . . 3 . . . . 3 . . . . 3 . Terminals 8 | . 1 2 2 3 . . . . . . . . . . . . . . . . . . . Botnet 8 | . 1 2 2 3 . . . . . . . . . . . . . . . . . . . Fabricators . | . . . . . . . . . . . . . . . . . . . . . . . . Repair Stations . | . . . . . . . . . . . . . . . . . . . . . . . . Recycling Units 12 | . . . . . . . 3 . . . . 3 . . . . 3 . . . . 3 . Fedlink 11 | . . . . . . . 3 . . . . 3 . . . . 2 . . . . 3 . Scrapoids 1 | . . . . . . . . . . . . . . . . . 1 . . . . . . Scanalyzers . | . . . . . . . . . . . . . . . . . . . . . . . . Garrison Access . | . . . . . . . . . . . . . . . . . . . . . . . . Data Cores Recovered 5 | . . 1 . . . . 1 . . . . 1 . . . . 1 . . . . . 1 Used . | . . . . . . . . . . . . . . . . . . . . . . . . Hacking Detections 57 | . 4 9 3 7 5 . 16 . . . . 2 4 2 . . 2 1 . . . 2 . Full Trace Events 4 | . 1 2 . . . . 1 . . . . . . . . . . . . . . . . Feedback Events . | . . . . . . . . . . . . . . . . . . . . . . . . Feedback Blocked . | . . . . . . . . . . . . . . . . . . . . . . . . Robot Schematics Acquired . | . . . . . . . . . . . . . . . . . . . . . . . . Robots Built . | . . . . . . . . . . . . . . . . . . . . . . . . Authchips . | . . . . . . . . . . . . . . . . . . . . . . . . Time . | . . . . . . . . . . . . . . . . . . . . . . . . Total Robot Build Rating . | . . . . . . . . . . . . . . . . . . . . . . . . Part Schematics Acquired 13 | . 1 . . . . . 4 . . . . 4 . . . . . . . 4 . . . Parts Built . | . . . . . . . . . . . . . . . . . . . . . . . . Authchips . | . . . . . . . . . . . . . . . . . . . . . . . . Time . | . . . . . . . . . . . . . . . . . . . . . . . . Total Part Build Rating . | . . . . . . . . . . . . . . . . . . . . . . . . Parts Repaired 5 | . . 2 . 1 . . 1 . . . . . . . . . 1 . . . . . . Time 208 | . . 58 . 61 . . 35 . . . . . . . . . 54 . . . . . . Parts Recycled . | . . . . . . . . . . . . . . . . . . . . . . . . Recycled Matter . | . . . . . . . . . . . . . . . . . . . . . . . . Retrieved Matter . | . . . . . . . . . . . . . . . . . . . . . . . . Retrieved Components 9 | . 9 . . . . . . . . . . . . . . . . . . . . . . Parts Scanalyzed 9 | . . . . . . . 4 . . . . 5 . . . . . . . . . . . Part Schematics Acquired 7 | . . . . . . . 3 . . . . 4 . . . . . . . . . . . Parts Damaged . | . . . . . . . . . . . . . . . . . . . . . . . . Bothacking | -11 -10 -9 -8 -8 -8 -8 -6 -6 -6 -6 -5 -5 -5 -5 -5 -5 -4 -4 -4 -4 -3 -3 -3 ------------ Run | Yrd Mat Mat Mat Sto Rec Scr Fac Low Low Zio Pro Fac Ext Cet Arc Hub Fac Upp Upp Zhi Pro Res Tes Used RIF Installer . | . . . . . . . . . . . . . . . . . . . . . . . . Robots Hacked . | . . . . . . . . . . . . . . . . . . . . . . . . Non-combat . | . . . . . . . . . . . . . . . . . . . . . . . . Combat . | . . . . . . . . . . . . . . . . . . . . . . . . Robot Hacks Applied . | . . . . . . . . . . . . . . . . . . . . . . . . Relay Couplers Released 5 | . . . . . . . . . . . . . . . . 4 . . . . . . 1 Machine Destruction 1 | . . . . . . . . . . . . . . . . . . . . . . . 1 Programmers 4 | . . . . . . . . . . . . . . . . 4 . . . . . . . Fabnet Peak Effective % . | . . . . . . . . . . . . . . . . . . . . . . . . Robots Rewired 14 | . . . . . . . . . . . . . 12 . . . . . 2 . . . . Allies Hacked . | . . . . . . . . . . . . . . . . . . . . . . . . Hacks Repelled . | . . . . . . . . . . . . . . . . . . . . . . . . Allies | -11 -10 -9 -8 -8 -8 -8 -6 -6 -6 -6 -5 -5 -5 -5 -5 -5 -4 -4 -4 -4 -3 -3 -3 -------- Run | Yrd Mat Mat Mat Sto Rec Scr Fac Low Low Zio Pro Fac Ext Cet Arc Hub Fac Upp Upp Zhi Pro Res Tes Total Allies 33 | . . . . . . . . . . . . . 21 5 . . 5 . 2 . . . . Largest Group 10 | . . . . . . . . . . . . . 9 10 7 6 5 . 2 2 2 . . Highest-Rated Group 751 | . . . . . . . . . . . . . 395 751 596 437 238 . 95 91 91 . . Highest-Rated Ally 159 | . . . . . . . . . . . . . 159 159 159 96 50 . 48 47 47 . . Total Orders 34 | . . . . . . . 3 . . . . 5 6 4 . 5 5 . . . . 4 2 STAY 4 | . . . . . . . . . . . . . 1 3 . . . . . . . . . FOLLOW 2 | . . . . . . . . . . . . . 1 1 . . . . . . . . . EXPLORE 3 | . . . . . . . 3 . . . . . . . . . . . . . . . . RETURN 25 | . . . . . . . . . . . . 5 4 . . 5 5 . . . . 4 2 Ally Attacks 301 | . . . . . . . . . . . . . 141 51 16 51 27 . 11 . 4 . . Total Damage 7337 | . . . . . . . . . . . . . 2683 1741 470 1284 842 . 276 . 41 . . Kills 48 | . . . . . . . . . . . . . 17 10 2 12 3 . 3 . 1 . . Allies Corrupted . | . . . . . . . . . . . . . . . . . . . . . . . . Allies Melted . | . . . . . . . . . . . . . . . . . . . . . . . . Intel | -11 -10 -9 -8 -8 -8 -8 -6 -6 -6 -6 -5 -5 -5 -5 -5 -5 -4 -4 -4 -4 -3 -3 -3 ------- Run | Yrd Mat Mat Mat Sto Rec Scr Fac Low Low Zio Pro Fac Ext Cet Arc Hub Fac Upp Upp Zhi Pro Res Tes Active Infowar (turns) 27470 | 61 1083 1725 668 559 . . 3007 744 1116 1310 826 2141 1193 15 83 1320 3640 1716 1684 254 1771 2051 503 Optics 12134 | . . . . . . . . . . . . . . . . 515 3640 1716 1684 254 1771 2051 503 Sensors 17281 | . . . 1 444 . . 2636 744 1116 1310 782 2062 1189 15 83 794 2258 775 1225 254 410 727 456 Structural 2354 | . 1 497 . 115 . . 371 . . . 44 79 4 . . 639 500 . . . 104 . . Seismic 3418 | 61 1082 1608 667 . . . . . . . . . . . . . . . . . . . . Jamming 359 | . . . . . . . . . . . . . . . . . 314 41 2 . 2 . . Robot Analysis Total 8 | . 1 . . 1 2 . . . . . . . . . . . . . . 4 . . . Derelict Logs Recovered 9 | . . . . . . . . 2 1 2 1 . . . . . . 1 2 . . . . Drone Launches 28 | . . . . . . . 3 . . . . 5 4 . . 5 5 . . . . 4 2 Drone Recoveries 26 | . . . . . . . 1 . . . . 5 4 . . 5 5 . . . . 4 2 Exploration | -11 -10 -9 -8 -8 -8 -8 -6 -6 -6 -6 -5 -5 -5 -5 -5 -5 -4 -4 -4 -4 -3 -3 -3 ------------- Run | Yrd Mat Mat Mat Sto Rec Scr Fac Low Low Zio Pro Fac Ext Cet Arc Hub Fac Upp Upp Zhi Pro Res Tes Turns Passed 40996 | 120 1139 1924 668 2760 1305 1387 4203 759 1135 1313 855 2463 1811 927 4294 1826 3640 1716 1684 254 1771 2051 991 Spaces Moved 16861 | 60 556 629 260 841 448 954 2147 503 765 891 561 1107 733 401 160 695 1363 799 751 140 896 913 288 Core 43 | 4 . . . . . . . . . . . . . . . . . . . . . . 39 Treads 3113 | 56 437 268 1 515 151 . . . . . . 4 5 . . . 72 135 250 . 57 913 249 Legs . | . . . . . . . . . . . . . . . . . . . . . . . . Wheels 13705 | . 119 361 259 326 297 954 2147 503 765 891 561 1103 728 401 160 695 1291 664 501 140 839 . . Hover . | . . . . . . . . . . . . . . . . . . . . . . . . Flight . | . . . . . . . . . . . . . . . . . . . . . . . . Fastest Speed 50 | 50 120 120 145 145 145 145 145 145 145 145 145 145 160 160 175 160 160 160 165 165 160 160 50 Average Speed 174 | 152 151 203 148 246 284 145 145 145 145 145 145 160 161 176 189 181 186 193 197 171 174 197 220 Slowest Speed 560 | 160 160 480 560 560 560 145 160 145 145 160 160 340 340 190 190 190 320 235 235 180 180 240 250 Overloaded Moves . | . . . . . . . . . . . . . . . . . . . . . . . . Propulsion Burnouts . | . . . . . . . . . . . . . . . . . . . . . . . . Robots Hopped . | . . . . . . . . . . . . . . . . . . . . . . . . Potential Cave-ins 8 | . . . . . . . . . . . . . . . . . . . . . 8 . . Cave-ins Triggered 1 | . . . . . . . . . . . . . . . . . . . . . 1 . . Teleports 1 | . . . . . . . . . . . . . . . . . . . . . . . 1 Exploration Rate (%) 63 | 5 80 73 23 94 82 80 54 75 90 79 62 22 76 80 76 66 35 92 80 61 85 27 33 Regions Visited 23 Branch Regions 16 Pre-discovered Areas 6 | . . . . . . . 1 1 . 1 . . . . . . . . . 3 . . . Known Exits Taken 18 | . . . 1 1 1 1 1 1 1 1 1 1 1 1 1 1 1 1 . . 1 1 . Unknown Exits Taken 5 | 1 1 1 . . . . . . . . . . . . . . . . 1 1 . . . Scrap Searched 23 | . . . . . . 1 . 4 1 3 4 . . . . . . 2 3 . 5 . . Spaces Dug 247 | . 5 8 2 8 . . 26 . . . 1 30 4 . . 5 19 . 99 . 7 6 27 Terrain Destroyed 826 | . 18 11 2 38 . . 42 50 14 . 1 40 4 52 5 64 57 6 246 . 42 33 101 Melee 78 | . 5 8 2 8 . . 26 . . . 1 28 . . . . . . . . . . . Projectile 145 | . . . . . . . . . . . . 2 4 . 5 44 46 6 3 . 12 10 13 AOE 603 | . 13 3 . 30 . . 16 50 14 . . 10 . 52 . 20 11 . 243 . 30 23 88 Terrain Rammed . | . . . . . . . . . . . . . . . . . . . . . . . . Walls Destroyed . | . . . . . . . . . . . . . . . . . . . . . . . . Machines Disabled . | . . . . . . . . . . . . . . . . . . . . . . . . Actions | -11 -10 -9 -8 -8 -8 -8 -6 -6 -6 -6 -5 -5 -5 -5 -5 -5 -4 -4 -4 -4 -3 -3 -3 --------- Run | Yrd Mat Mat Mat Sto Rec Scr Fac Low Low Zio Pro Fac Ext Cet Arc Hub Fac Upp Upp Zhi Pro Res Tes Total 25936 | 77 717 1037 459 1239 466 957 2962 528 776 912 589 1604 1149 602 4106 1066 2113 870 903 153 997 1115 539 Wait 6437 | . 37 222 65 126 5 . 527 . 1 5 15 310 187 123 3900 190 465 3 70 . 14 62 110 Move 16837 | 59 555 628 259 840 447 953 2146 502 764 890 560 1106 732 400 159 694 1362 798 750 139 894 912 288 Hop . | . . . . . . . . . . . . . . . . . . . . . . . . Pick Up 306 | 6 21 23 23 24 4 1 21 5 . 3 . 19 6 19 6 25 28 7 10 2 9 34 10 Fast Attach 70 | 6 1 2 6 13 . . 11 2 . 3 . 1 . . . 1 4 . 2 3 3 7 5 Attach 198 | 1 1 8 8 18 . . 13 1 . 2 . 11 5 6 6 20 23 11 11 4 14 12 23 Detach 27 | . . . . 1 . . 2 . . . . . 1 3 . 1 2 2 7 1 1 3 3 Swap 452 | 1 17 23 14 31 1 2 83 8 3 3 10 58 33 13 5 34 61 4 8 2 7 24 7 Drop 234 | . 13 9 35 25 2 1 24 7 . 6 . 9 5 23 1 10 13 1 4 2 4 30 10 Fire 1072 | 4 60 107 47 113 7 . 104 3 8 . 3 53 56 7 29 85 152 44 30 . 50 31 79 Melee 108 | . 12 12 2 15 . . 30 . . . 1 36 . . . . . . . . . . . Ram 2 | . . . . . . . 1 . . . . . . . . . 1 . . . . . . Kick . | . . . . . . . . . . . . . . . . . . . . . . . . Crush 10 | . . 3 . 1 . . . . . . . 1 . . . 3 2 . . . . . . Escape Stasis 27 | . . . . . . . . . . . . . 26 . . . . . . . 1 . . Rewire 73 | . . . . . . . . . . . . . 58 . . . . . 11 . . . 4 Trap . | . . . . . . . . . . . . . . . . . . . . . . . . Miscellaneous 83 | . . . . 32 . . . . . . . . 40 8 . 3 . . . . . . . Route ------- -11/Scrapyard -10/Materials (discovered 3 exits: *Mat x2 / [*Min]) -9/Materials (discovered 3 exits: *Mat x2 / *Min) -8/Materials (discovered 2 exits: *Sto x2) -8/Storage (discovered 2 exits: [*Fac] / *Rec) -8/Recycling -8/Scraptown (discovered 2 exits: *Fac x2) -6/Factory (discovered 4 exits: *Fac x2 / *Low x2) -6/Lower Caves -6/Lower Caves (discovered 2 exits: *Fac / *Zio) -6/Zion -5/Proximity Caves -5/Factory (discovered 5 exits: *Fac x4 / *Ext) -5/Extension (discovered 3 exits: *Fac x2 / *Cet) -5/Cetus (discovered 2 exits: *Fac / *Arc) -5/Archives (discovered 2 exits: *Hub x2) -5/Hub_04(d) (discovered 2 exits: *Fac x2) -4/Factory (discovered 7 exits: *Res x4 / *Upp x2 / Arm) -4/Upper Caves -4/Upper Caves (discovered 2 exits: *Res / *Zhi) -4/Zhirov -3/Proximity Caves -3/Research -3/Testing (discovered 1 exit: Res) History --------- Turn | Location | Event 25 | -11/Scrapyard | Discovered new exit (range 14) 121 | -11/Scrapyard | Entered Materials 301 | -10/Materials | Discovered new exit (range 7) 312 | -10/Materials | Build established: Mutant 468 | -10/Materials | Discovered new exit (range 16) 1104 | -10/Materials | Core integrity fell below 50% 1134 | -10/Materials | Discovered new exit (range 5) 1199 | -10/Materials | Central database locked down 1260 | -10/Materials | Entered another Materials area 1260 | -9/Materials | Evolved 2 slots: Propulsion x1, Utility x1 1832 | -9/Materials | Build established: Scavenger-Mutant 2178 | -9/Materials | Discovered new exit (range 5) 2381 | -9/Materials | Identified exit to Mines 2666 | -9/Materials | Repaired Lgt. Treads 2700 | -9/Materials | Repaired Beam Rifle 2991 | -9/Materials | Lost 3 parts (1n2w) 3180 | -9/Materials | Discovered new exit (range 2) 3184 | -9/Materials | Entered another Materials area 3184 | -8/Materials | Evolved 2 slots: Utility x2 3816 | -8/Materials | Identified exit to Storage 3852 | -8/Materials | Entered Storage 4208 | -8/Storage | Build established: Mutant 4790 | -8/Storage | Build established: Scavenger-Mutant 4979 | -8/Storage | Discovered new exit (range 15) 5064 | -8/Storage | Core integrity fell below 50% 5604 | -8/Storage | Repaired Broken Arm. Huge Wheel 6050 | -8/Storage | Build established: Mutant 6377 | -8/Storage | Garrison activated, responded to threat 6515 | -8/Storage | Used back door to open Recycling access 6515 | -8/Storage | Discovered new exit (range 5) 6610 | -8/Storage | Identified exit to Recycling 6612 | -8/Storage | Entered Recycling 6715 | -8/Recycling | Scanned before Scraplab entrance 6779 | -8/Recycling | Build established: Scavenger-Mutant 7859 | -8/Recycling | Entered Scraplab 7871 | -8/Recycling | Discovered new exit (range 4) 7873 | -8/Recycling | Identified exit to Scraptown 7917 | -8/Recycling | Entered Scraptown 8058 | -8/Scraptown | Visited Fellowship of the Rings 8093 | -8/Scraptown | Visited Assassins FH 8126 | -8/Scraptown | Visited Cyclists 8149 | -8/Scraptown | Visited Cave Peace 8173 | -8/Scraptown | Visited Symbiants 8212 | -8/Scraptown | Visited Comm Corps 8274 | -8/Scraptown | Visited Observation Area 8345 | -8/Scraptown | Received an X-ray algorithm 8380 | -8/Scraptown | Discovered new exit (range 13) 8508 | -8/Scraptown | Heard Great Nut preacher, LISTEN AND RECITE! 8741 | -8/Scraptown | Visited UFD Registry 8741 | -8/Scraptown | Registered with UFD as "Flexicore" 8773 | -8/Scraptown | Visited Botcube Research 8796 | -8/Scraptown | Visited LU-1G1's Boring Crew 8822 | -8/Scraptown | Visited Junk Repository 8863 | -8/Scraptown | Visited Science Guys 8908 | -8/Scraptown | Visited Infowarlord's Domain 8927 | -8/Scraptown | Visited A0-MCA Data Center 8935 | -8/Scraptown | Given a B+ rating by A0-MCA 8954 | -8/Scraptown | Visited Chapter 10 9001 | -8/Scraptown | Visited Scrap Suit Storage 9038 | -8/Scraptown | Visited Research Penetration Think Tank 9073 | -8/Scraptown | Visited Cartography Club 9185 | -8/Scraptown | Found Exp. Signal Interpreter 9223 | -8/Scraptown | Met Optimus 9223 | -8/Scraptown | Accepted into 0bPrime 9299 | -8/Scraptown | Discovered new exit (range 3) 9301 | -8/Scraptown | Identified exit to Factory 9304 | -8/Scraptown | Entered Factory 9304 | -6/Factory | Evolved 4 slots: Propulsion x1, Utility x2, Weapon x1 9472 | -6/Factory | Garrison activated, responded to threat 9989 | -6/Factory | Lost 4 parts (2u2w) 10824 | -6/Factory | Build established: Scavenger-Skirmisher 10961 | -6/Factory | Discovered new exit (range 3) 10964 | -6/Factory | Identified exit to Factory 11724 | -6/Factory | Build established: Scavenger-Mutant 11946 | -6/Factory | Loaded intel: 8 recycling unit locations 11970 | -6/Factory | Learned location of Protoforge (-2) 12139 | -6/Factory | Discovered exit to Factory (range 4) 12412 | -6/Factory | Repaired Prc. Assault Rifle 12745 | -6/Factory | Discovered new exit (range 10) 12862 | -6/Factory | Identified exit to Lower Caves 12894 | -6/Factory | Build established: Hacker-Mutant 13421 | -6/Factory | Discovered exit to Lower Caves (range 16) 13436 | -6/Factory | Found Unknown Protection 13436 | -6/Factory | Identified Hvy. Reactive Plating 13507 | -6/Factory | Entered Lower Caves 13817 | -6/Lower Caves | Encountered a Warlord checkpoint 13877 | -6/Lower Caves | Identified exit to Lower Caves 13899 | -6/Lower Caves | Learned location of Extension (-5) 13966 | -6/Lower Caves | Build established: Hacker-Skirmisher 14266 | -6/Lower Caves | Entered another Lower Caves area 14309 | -6/Lower Caves | Discovered exit to Factory (range 7) 14404 | -6/Lower Caves | Found DCF Scrap (13 items) 14770 | -6/Lower Caves | Discovered new exit (range 7) 14779 | -6/Lower Caves | Identified exit to Zion 15160 | -6/Lower Caves | Encountered a Warlord checkpoint 15401 | -6/Lower Caves | Entered Zion 15494 | -6/Zion | System corruption cleaned by Quarantine Array 15558 | -6/Zion | Given the Hacking Drone Bay 15648 | -6/Zion | Discovered new exit (range 10) 15681 | -6/Zion | Found Prototype Device 15822 | -6/Zion | Learned Factory emergency access door positions 15920 | -6/Zion | Learned location of Testing (-3) 15975 | -6/Zion | Build established: Skirmisher 16713 | -6/Zion | Identified exit to Proximity Caves 16714 | -6/Zion | Entered Proximity Caves 17251 | -5/Proximity Caves | Learned location of 1 exit from Upper Caves 17534 | -5/Proximity Caves | Discovered exit to Factory (range 9) 17569 | -5/Proximity Caves | Entered Factory 17569 | -5/Factory | Evolved 2 slots: Power x1, Utility x1 17570 | -5/Factory | Identified exit to Extension 17658 | -5/Factory | Identified Hacking Drone Bay 17851 | -5/Factory | Build established: Mutant 18061 | -5/Factory | System corruption reached 10% 18099 | -5/Factory | Discovered new exit (range 12) 18103 | -5/Factory | Lost 4 parts (2p2w) 18166 | -5/Factory | Identified exit to Factory 18223 | -5/Factory | Build established: Tank 18806 | -5/Factory | Lost 3 parts (1p2u) 19120 | -5/Factory | Build established: Mutant 19432 | -5/Factory | Loaded intel: 8 recycling unit locations 20032 | -5/Factory | Entered Extension 20264 | -5/Extension | Build established: Tank 20309 | -5/Extension | Identified exit to Cetus 20398 | -5/Extension | Rescued a captive Derelict 20434 | -5/Extension | Rescued a captive Derelict 20591 | -5/Extension | Rescued a captive Derelict 20624 | -5/Extension | Rescued a captive Derelict 20667 | -5/Extension | Rescued a captive Derelict 20667 | -5/Extension | Rescued a captive Derelict 20863 | -5/Extension | Spotted B-75 Beast 20889 | -5/Extension | Destroyed B-75 Beast 20913 | -5/Extension | Spotted B-75 Beast 20931 | -5/Extension | Destroyed B-75 Beast 20951 | -5/Extension | Lost 3 allies 21085 | -5/Extension | Rescued a captive Derelict 21086 | -5/Extension | Rescued a captive Derelict 21157 | -5/Extension | Disrupted transfer network 21215 | -5/Extension | Lost 3 allies 21529 | -5/Extension | Rescued A7 21843 | -5/Extension | Entered Cetus 21843 | -5/Cetus | Accompanied by 8 allies (A7) 21848 | -5/Cetus | Acquired a Cetus Manufacturing Module code from A7 21890 | -5/Cetus | Spotted Cetus Guard 21890 | -5/Cetus | Spotted Cetus Guard 21892 | -5/Cetus | Spotted Cetus Guard 21895 | -5/Cetus | Allies destroyed Cetus Guard 21901 | -5/Cetus | Destroyed Cetus Guard 21901 | -5/Cetus | Allies destroyed Cetus Guard 21931 | -5/Cetus | Lost 3 allies 22032 | -5/Cetus | Started Cetus Manufacturing Module 22057 | -5/Cetus | Manufactured an Enhanced Grunt 22073 | -5/Cetus | Escorted A7 to Cetus Mainframe 22082 | -5/Cetus | Manufactured an Enhanced Grunt 22107 | -5/Cetus | Manufactured an Enhanced Grunt 22132 | -5/Cetus | Manufactured an Enhanced Grunt 22157 | -5/Cetus | Manufactured an Enhanced Grunt 22227 | -5/Cetus | Build established: Commander-Mutant 22280 | -5/Cetus | Discovered new exit (range 15) 22305 | -5/Cetus | Identified exit to Archives 22362 | -5/Cetus | Spotted Cetus Guard 22363 | -5/Cetus | Spotted Cetus Guard 22367 | -5/Cetus | Spotted Cetus Guard 22370 | -5/Cetus | Allies destroyed Cetus Guard 22375 | -5/Cetus | Allies destroyed Cetus Guard 22376 | -5/Cetus | Spotted Cetus Guard 22379 | -5/Cetus | Allies destroyed Cetus Guard 22387 | -5/Cetus | Allies destroyed Cetus Guard 22421 | -5/Cetus | Discovered exit to Factory (range 16) 22432 | -5/Cetus | Met Revision 17 22593 | -5/Cetus | Security sweep announced 22770 | -5/Cetus | Entered Archives 22770 | -5/Archives | Accompanied by 7 allies (A7) 22775 | -5/Archives | Received a hacking code to weaken MAIN.C 22946 | -5/Archives | Unable to access archive contents 22987 | -5/Archives | Unable to access archive contents 23018 | -5/Archives | Discovered new exit (range 16) 23052 | -5/Archives | Discovered new exit (range 16) 23311 | -5/Archives | Build established: Commander-Tank 27060 | -5/Archives | Identified exit to Hub_04(d) 27064 | -5/Archives | Entered Hub_04(d) 27064 | -5/Hub_04(d) | Accompanied by 6 allies 27301 | -5/Hub_04(d) | Lost 3 allies 27301 | -5/Hub_04(d) | Discovered exit to Factory (range 7) 27823 | -5/Hub_04(d) | Core integrity fell below 50% 27837 | -5/Hub_04(d) | Lost 3 allies 27910 | -5/Hub_04(d) | Lost 8 parts (1p6u1w) 27936 | -5/Hub_04(d) | Destroyed 8 combat bots 27950 | -5/Hub_04(d) | Discovered exit to Factory (range 11) 28564 | -5/Hub_04(d) | First assault squad dispatched 28658 | -5/Hub_04(d) | Lost 4 parts (3u1w) 28759 | -5/Hub_04(d) | Network Hub disabled 28890 | -5/Hub_04(d) | Entered Factory 28890 | -4/Factory | Evolved 2 slots: Utility x2 29226 | -4/Factory | Build established: Scavenger-Skirmisher 29680 | -4/Factory | Discovered new exit (range 16) 29698 | -4/Factory | Build established: Scavenger-Tank 29721 | -4/Factory | Identified exit to Upper Caves 29721 | -4/Factory | Identified exit to Armory 29722 | -4/Factory | Identified exit to Research 30494 | -4/Factory | Allied Derelicts emerged from ambush trap array 30652 | -4/Factory | Lost 3 allies 31027 | -4/Factory | System corruption reached 10% 31814 | -4/Factory | Loaded intel: 8 recycling unit locations 32274 | -4/Factory | Repaired Centrium Heavy Treads 32390 | -4/Factory | First assault squad dispatched 32461 | -4/Factory | Scrapoid reinforcements arrived 32503 | -4/Factory | Spotted B-86 Titan 32530 | -4/Factory | Entered Upper Caves 32531 | -4/Upper Caves | Identified exit to Upper Caves 32558 | -4/Upper Caves | Lost 5 allies 33380 | -4/Upper Caves | Lost 4 parts (1p1n2w) 33638 | -4/Upper Caves | Entered a destroyed Warlord outpost 33647 | -4/Upper Caves | Learned Research trap positions 34246 | -4/Upper Caves | Entered another Upper Caves area 34398 | -4/Upper Caves | Discovered exit to Research (range 8) 34487 | -4/Upper Caves | Attracted the attention of an 0b10 outpost 34564 | -4/Upper Caves | Destroyed 13 combat bots 34565 | -4/Upper Caves | Lost 4 parts (1p1n2u) 35199 | -4/Upper Caves | Learned Research garrison access intel 35404 | -4/Upper Caves | Attracted the attention of an 0b10 checkpoint 35765 | -4/Upper Caves | Build established: Scavenger-Mutant 35821 | -4/Upper Caves | Discovered new exit (range 6) 35835 | -4/Upper Caves | Learned Research garrison access intel 35930 | -4/Upper Caves | Entered Zhirov 35930 | -4/Zhirov | Accompanied by 2 allies 35930 | -4/Zhirov | Discovered new exit (range 3) 35961 | -4/Zhirov | Met Zhirov 35990 | -4/Zhirov | Learned location of Quarantine (-2) 35990 | -4/Zhirov | Learned location of Command (-1) 36007 | -4/Zhirov | Zhirov requested help retrieving the SGEMP Prototype 36040 | -4/Zhirov | Found Alien Artifact 36040 | -4/Zhirov | Identified Integrated Reactor 36040 | -4/Zhirov | Installed Integrated Reactor, increased core energy generation (+10) 36105 | -4/Zhirov | Found Alien Artifact 36184 | -4/Zhirov | Entered Proximity Caves 36184 | -3/Proximity Caves | Accompanied by 2 allies 36470 | -3/Proximity Caves | Build established: Scavenger-Tank 36946 | -3/Proximity Caves | Spotted B-86 Titan 37596 | -3/Proximity Caves | Build established: Scavenger-Mutant 37735 | -3/Proximity Caves | Crushed by falling debris 37736 | -3/Proximity Caves | Attracted the attention of an 0b10 checkpoint 37736 | -3/Proximity Caves | System corruption reached 30% 37852 | -3/Proximity Caves | Destroyed B-86 Titan 37871 | -3/Proximity Caves | Lost 12 parts (1p2n5u4w) 37917 | -3/Proximity Caves | Discovered exit to Research (range 7) 37955 | -3/Proximity Caves | Entered Research 37955 | -3/Research | Evolved 2 slots: Utility x2 37956 | -3/Research | Loaded intel: 59 trap records 37957 | -3/Research | Loaded intel: 3 garrison access locations 38049 | -3/Research | Build established: Derelict-Tank 38155 | -3/Research | Revision forces began assault on 0b10 38157 | -3/Research | Met up with Revision 17++ 38201 | -3/Research | Spotted B-86 Titan 38295 | -3/Research | Loaded intel: 5 recycling unit locations 38655 | -3/Research | Research terminal network offline 38879 | -3/Research | Spotted Executioner 38881 | -3/Research | Spotted Striker 38894 | -3/Research | Destroyed Executioner 38922 | -3/Research | Lost 3 allies 39175 | -3/Research | Found Prototype Launcher 39175 | -3/Research | Identified Com. Tesla Bomb Launcher 39202 | -3/Research | Build established: Scavenger-Tank 39411 | -3/Research | Discovered new exit (range 5) 39416 | -3/Research | Identified exit to Testing 39736 | -3/Research | Found Prototype Launcher 39737 | -3/Research | Identified Tactical Quantum Warhead 39749 | -3/Research | Found Prototype Launcher 39750 | -3/Research | Identified Hellfire Missile Launcher 40006 | -3/Research | Entered Testing 40102 | -3/Testing | Found Prototype Device 40103 | -3/Testing | Identified Exp. Hardlight Generator 40220 | -3/Testing | Identified exit to Research 40488 | -3/Testing | Spotted Alpha 7 40491 | -3/Testing | Scanned by Researcher 40499 | -3/Testing | System corruption reached 10% 40515 | -3/Testing | System corruption reached 30% 40528 | -3/Testing | Destroyed 7 combat bots 40536 | -3/Testing | Destroyed Alpha 7 40563 | -3/Testing | Lost 16 parts (1p2n10u3w) 40689 | -3/Testing | Core integrity fell below 50% 40708 | -3/Testing | Lost 10 parts (2p2n3u3w) 40739 | -3/Testing | Identified Transdimensional Reconstructor 40739 | -3/Testing | Warped through subspace 40889 | -3/Testing | Spotted Striker 40932 | -3/Testing | Build established: Mutant 40939 | -3/Testing | Core integrity fell below 20% 40985 | -3/Testing | Spotted Superbehemoth 40997 | -3/Testing | Destroyed by P-80 Master with Gamma Rifle Last Messages --------------- Slug penetrates Wall. H-77 Assassin system terminally corrupted. The unstable cave ceiling collapses. Imp. Core Shielding destroyed. System corrupted: Energy discharge (-15). Com. HERF Cannon destroyed. Penetrated by Slug. Centrium Heavy Treads destroyed. Dropped Huge Storage Unit. Machine disabled. Attempting to rewire Superbehemoth. Superbehemoth is dormant, system inaccessible. Attempting to rewire Superbehemoth. Superbehemoth is dormant, system inaccessible. Attempting to rewire Superbehemoth. Superbehemoth is dormant, system inaccessible. Attempting to rewire Superbehemoth. Superbehemoth is dormant, system inaccessible. P-80 Master resets P-80 Master, system corruption cleaned. Map ----- +----------------------------------------------------+ | | | | | | | | | | | | | | | | | | | | | | | | | | | | | | | | | | | | | | | | | ?????????????????????????????????????????????????? | | ???????????????????????##########????????????????? | | ???????????????????????#"""""""""#???????????????? | | ??????????????????????##" " """"#???????????????? | | ??????????????????????#BB c """#???????????????? | | ??????????????????????#BB@ """#???????????????? | | ??????????????????????##" """#???????????????? | | ???????????????????????# ] #???????????????? | | ???# ##########???######p! ###?????????????? | | ???? #???# p] Y #????????? | | ???????? #???# p ########## ?????????? | | ???????????# #???# ## # ##???????????????????? | | ???????????# #???# ## # ##???????????????????? | | ???????????# #???# # # #??????????????????? | | ???????????# #???# #######??????????????????? | | ???????????# ##### # # # ######?????????????? | | ???????????# ??????????? | | ???????????# !$ ??????????? | | ???????????######"### # ##+###??????????????? | | ????????????# T # = #???????????????????? | | ????????????# # #???????????????????? | | ????????????# """ # !!!#???????????????????? | | ????????????# """ # !! #???????????????????? | | ????????????# """ # !!!#???????????????????? | | ????????????# # #???????????????????? | | ????????????######## #???????????????????? | | ???????????????????# #???????????????????? | | ???????????????????###+#######???????????????????? | | ???????????????????? ?????????????????????????? | | ?????????????????? ?????????????????????????? | +----------------------------------------------------+ Best States ------------- Heat Dissipation 127 Coolant Potential 200 Energy Generation 53 Energy Capacity 1065 Matter Stores 300 Matter Capacity 300 Sight Range 22 Robot Scan Range 19 Terrain Scan Density 10 Jamming Range 16 Base Temperature (-) 150 EM Shielding 2 Armor Coverage 1650 Resistance: KI 40 Resistance: EX 50 Core Shielding 30 Propulsion Shielding 66 Phase Shifting 10 Evasion (%) 50 Targeting Accuracy 8 Recoil Reduction 4 Energy Filtering 30 Particle Charging 25 Offensive Hacking 20 Authchip Count 3 Item Schematics ----------------- Huge Storage Unit | -10/Materials | Hacked Imp. Cryofiber Web | -6/Factory | Scanalyzed Imp. Medium Treads | -6/Factory | Scanalyzed Imp. Shield Generator | -6/Factory | Scanalyzed Adv. Heat Sink | -6/Factory | Hacked Hvy. Reactive Plating | -5/Factory | Scanalyzed Spk. Medium Treads | -5/Factory | Scanalyzed Hvy. Plasma Cannon | -5/Factory | Scanalyzed Structural Scanner | -5/Factory | Scanalyzed Assault Drone Bay | -4/Zhirov | Free Exp. Heat Sink | -4/Zhirov | Free Exp. Optical Array | -4/Zhirov | Free Imp. Arc Thrower | -4/Zhirov | Free Robot Schematics ------------------ None Fabricated ------------ Nothing Repaired ---------- Lgt. Treads | 18% | -9/Materials Beam Rifle | 37% | -9/Materials Arm. Huge Wheel | 87% | -8/Storage | Broken Prc. Assault Rifle | 17% | -6/Factory Centrium Heavy Treads | 51% | -4/Factory Alien Tech Used ----------------- Integrated Reactor Transdimensional Reconstructor Achievements -------------- Main Advantage Prison Break Project G-00 Pyromaniac Revolutionary Research Challenges ------------ None Game ------ Seed BarrageWeldingBox Manual? 0 Play Time 05:57:53 Cumulative 49.0 hours Start 2025.08.01 @ 13:24:06 End 2025.08.06 @ 03:33:51 Sessions 9 Manual Loads 0 Difficulty Rogue Special Mode None Game No. 26 Rogue 24 Adventurer 0 Explorer 2 Win Type - Total 1 Types 1/0/0/0/0/0/0/0/0/0 Lore% 55 Gallery% 36 Achievement% 39 Wizard Run 0 Options --------- Layout 1 ASCII 0 Keyboard 0 Movement Mouse Keybinds 0 Fullscreen 1 Font 24/Smallcaps Map View 50x35 Zoom Use 0% Tactical HUD 0 Map Filters NONE Filters NONE Steam 1 RUN: 0252bd3f-2736-4fe8-a722-0449ca1493a7